fUSD/lending_fUSD_20240701
["ID","MTS","AMOUNT","RATE_DAILY","PERIOD"]
[330823523,1719844238216,-179.81535733,0.00015479,2]
[330823524,1719844238226,-152.61271258,0.00015535,2]
[330823525,1719844238238,-12.21735309,0.00015535,2]
[330823526,1719844238247,-254.14338377,0.00015579,2]
[330823527,1719844238257,-276.10780549,0.00015832,2]
[330823528,1719844238266,-77.53145765,0.00015832,2]
[330823529,1719844238278,-77.46854235,0.00015832,2]
[330823530,1719844238287,-420.0,0.00015875,2]
[330823531,1719844238297,-2016.95428,0.0001656,2]
[330823532,1719844238307,-227.0716558,0.00016699,2]
[330823533,1719844238316,-520.94,0.00016745,2]
[330823534,1719844238326,-587.0,0.00017384,2]
[330823535,1719844238335,-1341.41519294,0.00017599,2]
[330823536,1719844238345,-412.77182891,0.0001764,2]
[330823537,1719844238359,-955.27057878,0.0001764,2]
[330823539,1719844238370,-648.91188231,0.0001764,2]
[330823541,1719844238380,-150.0,0.0001831,2]
[330823543,1719844238390,-153.66365769,0.00018424,2]
[330823546,1719844238403,-544.57763909,0.00018424,2]
[330823708,1719844240056,-923.77827356,0.00018424,2]
[330823713,1719844240068,-820.68169376,0.00018424,2]
[330823718,1719844240086,-1180.6987359,0.00018424,2]
[330823721,1719844240097,-832.4255981,0.00018448,2]
[330823724,1719844240111,-1214.61499996,0.00018448,2]
[330823762,1719844240295,-6623.33940194,0.00018448,2]
[330823764,1719844240305,-250.0,0.00018456,2]
[330823766,1719844240315,-2199.44,0.000185,2]
[330823768,1719844240325,-137.98059806,0.00018699,2]
[330823770,1719844240337,-112.01940194,0.00018699,2]
[330823772,1719844240346,-181.15,0.00018703,2]
[330823774,1719844240357,-568.03059806,0.00018745,2]
[330823776,1719844240370,-431.96940194,0.00018745,2]
[330823778,1719844240380,-847.02556474,0.00018849,30]
[330823781,1719844240392,-821.71443526,0.00018849,30]
[330823783,1719844240401,-2016.95428,0.0001889,2]
[330823785,1719844240411,-159.27,0.0001891,2]
[330823787,1719844240421,-520.94,0.00019009,2]
[330823789,1719844240431,-823.0,0.00019035,2]
[330823791,1719844240441,-159.27,0.00019051,2]
[330823792,1719844240451,-155.0,0.00019077,2]
[330823794,1719844240461,-159.78,0.00019164,2]
[330823796,1719844240472,-250.0,0.00019178,2]
[330823798,1719844240482,-150.63,0.00019178,2]
[330823800,1719844240492,-159.27,0.00019192,2]
[330823802,1719844240503,-500.0,0.000192,7]
[330823804,1719844240517,-159.27,0.00019333,2]
[330823806,1719844240528,-155.0,0.00019399,2]
[330823809,1719844240539,-155.16593148,0.00019451,2]
[330823810,1719844240548,-158.93145522,0.00019451,2]
[330823812,1719844240560,-159.27,0.00019473,2]
[330823814,1719844240570,-283.76460163,0.00019548,2]
[330823816,1719844240580,-159.27,0.00019614,2]
[330823818,1719844240589,-159.27,0.00019755,2]
[330823820,1719844240600,-159.27,0.00019896,2]
[330823822,1719844240611,-2000.59162161,0.00019899,2]
[330823824,1719844240621,-12762.29138076,0.0002,3]
[330823826,1719844240631,-2016.95429,0.0002014,2]
[330823828,1719844240641,-2018.30932762,0.000202,2]
[330823830,1719844240651,-2500.0,0.000208,2]
[330823832,1719844240661,-1152.0,0.00020843,2]
[330823834,1719844240672,-500.0,0.00020953,2]
[330823836,1719844240682,-500.0,0.00020953,2]
[330823838,1719844240692,-500.0,0.00020953,2]
[330823840,1719844240702,-500.0,0.00020953,2]
[330823842,1719844240712,-500.0,0.00020953,2]
[330823844,1719844240722,-500.0,0.00020953,2]
[330823845,1719844240731,-500.0,0.00020953,2]
[330823847,1719844240741,-500.0,0.00020953,2]
[330823849,1719844240751,-500.0,0.00020953,2]
[330823851,1719844240761,-500.0,0.00020953,2]
[330823854,1719844240772,-500.0,0.00020953,2]
[330823855,1719844240782,-500.0,0.00020953,2]
[330823857,1719844240791,-500.0,0.00020953,2]
[330823859,1719844240800,-500.0,0.00020953,2]
[330823861,1719844240809,-500.0,0.00020953,2]
[330823863,1719844240819,-500.0,0.00020953,2]
[330823865,1719844240828,-500.0,0.00020953,2]
[330823867,1719844240837,-500.0,0.00020953,2]
[330823869,1719844240847,-500.0,0.00020953,2]
[330823871,1719844240859,-500.0,0.00020953,2]
[330823873,1719844240868,-500.0,0.00020953,2]
[330823875,1719844240878,-500.0,0.00020953,2]
[330823877,1719844240887,-500.0,0.00020953,2]
[330823879,1719844240896,-500.0,0.00020953,2]
[330823881,1719844240908,-500.0,0.00020953,2]
[330823883,1719844240919,-500.0,0.00020953,2]
[330823885,1719844240928,-500.0,0.00020953,2]
[330823887,1719844240938,-500.0,0.00020953,2]
[330823889,1719844240947,-500.0,0.00020953,2]
[330823891,1719844240957,-500.0,0.00020953,2]
[330823893,1719844240966,-500.0,0.00020953,2]
[330823895,1719844240977,-500.0,0.00020953,2]
[330823897,1719844240986,-500.0,0.00020953,2]
[330823899,1719844240996,-500.0,0.00020953,2]
[330823901,1719844241006,-500.0,0.00020953,2]
[330823927,1719844241253,-500.0,0.00020953,2]
[330823929,1719844241266,-500.0,0.00020953,2]
[330823931,1719844241276,-500.0,0.00020953,2]
[330823933,1719844241286,-500.0,0.00020953,2]
[330823935,1719844241295,-500.0,0.00020953,2]
[330823937,1719844241305,-500.0,0.00020953,2]
[330823939,1719844241315,-500.0,0.00020953,2]
[330823941,1719844241324,-500.0,0.00020953,2]
[330823943,1719844241334,-500.0,0.00020953,2]
[330823945,1719844241344,-500.0,0.00020953,2]
[330823947,1719844241353,-500.0,0.00020953,2]
[330823949,1719844241365,-500.0,0.00020953,2]
[330823951,1719844241374,-500.0,0.00020953,2]
[330823953,1719844241383,-500.0,0.00020953,2]
[330823955,1719844241393,-500.0,0.00020953,2]
[330823957,1719844241403,-500.0,0.00020953,2]
[330823958,1719844241413,-500.0,0.00020953,2]
[330823959,1719844241422,-500.0,0.00020953,2]
[330823960,1719844241431,-500.0,0.00020953,2]
[330823961,1719844241441,-500.0,0.00020953,2]
[330823962,1719844241450,-500.0,0.00020953,2]
[330823963,1719844241459,-500.0,0.00020953,2]
[330823964,1719844241468,-500.0,0.00020953,2]
[330823965,1719844241477,-500.0,0.00020953,2]
[330823966,1719844241487,-500.0,0.00020953,2]
[330823967,1719844241496,-500.0,0.00020953,2]
[330823968,1719844241505,-500.0,0.00020953,2]
[330823969,1719844241517,-500.0,0.00020953,2]
[330823970,1719844241527,-500.0,0.00020953,2]
[330823971,1719844241537,-500.0,0.00020953,2]
[330823973,1719844241547,-500.0,0.00020953,2]
[330823975,1719844241558,-500.0,0.00020953,2]
[330823977,1719844241567,-500.0,0.00020953,2]
[330823979,1719844241577,-500.0,0.00020953,2]
[330823981,1719844241587,-500.0,0.00020953,2]
[330823983,1719844241598,-500.0,0.00020953,2]
[330823985,1719844241609,-4289.5519,0.00020953,2]
[330823987,1719844241619,-225.19167095,0.00021,2]
[330823989,1719844241628,-1000.0,0.00021088,2]
[330823991,1719844241638,-150.63,0.00021096,2]
[330823993,1719844241649,-520.94,0.00021273,2]
[330823995,1719844241658,-2016.95429,0.0002139,2]
[330823997,1719844241667,-155.22,0.00021644,2]
[330823999,1719844241678,-150.0,0.00021671,2]
[330824001,1719844241687,-150.0,0.00021671,2]
[330824003,1719844241697,-150.0,0.00021671,2]
[330824005,1719844241707,-150.0,0.00021671,2]
[330824007,1719844241716,-150.0,0.00021671,2]
[330824009,1719844241725,-150.0,0.00021671,2]
[330824011,1719844241736,-150.0,0.00021671,2]
[330824013,1719844241745,-150.0,0.00021671,2]
[330824015,1719844241755,-199.0,0.0002171,3]
[330824017,1719844241764,-1132.3034203,0.00021796,2]
[330824019,1719844241774,-1538.20362888,0.00021797,2]
[330824021,1719844241784,-1012.9,0.000218,2]
[330824023,1719844241794,-3581.17091687,0.00021817,2]
[330824025,1719844241804,-167.6494545,0.00021817,2]
[330824027,1719844241813,-163.75229274,0.00021817,2]
[330824029,1719844241822,-1538.20362882,0.00021864,2]
[330824031,1719844241832,-3581.17091677,0.0002187,2]
[330824033,1719844241841,-7605.6747529,0.00021886,2]
[330824035,1719844241851,-15211.3495058,0.0002189,2]
[330824037,1719844241861,-80270.72256655,0.00021897,2]
[330824040,1719844241876,-11247.31413264,0.00021897,2]
[330824043,1719844241902,-38037.51809323,0.00021897,2]
[330824045,1719844241914,-1730.84596,0.00021897,2]
[330824048,1719844241927,-698.50638546,0.00021897,2]
[330824050,1719844241939,-2962.28790873,0.00021897,2]
[330824181,1719844243039,-155.0,0.00019389,2]
[330824183,1719844243049,-172.12129972,0.000208,2]
[330824186,1719844243061,-327.87870028,0.000208,2]
[330824188,1719844243070,-115.27790862,0.00021825,2]
[330824190,1719844243082,-687.85090234,0.00021825,2]
[330824192,1719844243093,-55.87118904,0.00021825,2]
[330824194,1719844243103,-937.25617137,0.00021897,2]
[330824196,1719844243117,-4269.08905098,0.00021897,2]
[330824199,1719844243129,-27171.30429504,0.00021897,2]
[330824201,1719844243138,-8775.81738717,0.00021897,2]
[330824219,1719844243296,-500.0,0.000208,2]
[330824221,1719844243307,-46230.58886763,0.00021897,2]
[330824223,1719844243316,-158.09,0.00021897,2]
[330824225,1719844243326,-2000.0,0.00021897,2]
[330824227,1719844243335,-200.0,0.00021897,2]
[330824229,1719844243345,-7605.6747529,0.00021898,2]
[330824231,1719844243356,-22976.0,0.000219,2]
[330824233,1719844243368,-491.0,0.000219,4]
[330824235,1719844243377,-982.0,0.000219,4]
[330824237,1719844243387,-5800.0,0.000219,2]
[330824239,1719844243398,-191.0,0.000219,4]
[330824241,1719844243407,-982.0,0.000219,4]
[330824243,1719844243416,-9167.7343758,0.00021906,2]
[330824245,1719844243425,-53239.7232703,0.00021907,2]
[330824247,1719844243434,-440051.250038,0.00021907,2]
[330824249,1719844243443,-158.09,0.00021907,2]
[330824251,1719844243453,-421.463453,0.00021908,2]
[330824253,1719844243462,-699.9747975,0.00021908,2]
[330824255,1719844243471,-2757.9386125,0.00021908,2]
[330824257,1719844243481,-151.16,0.00021912,2]
[330824259,1719844243490,-155.0,0.00021914,2]
[330824261,1719844243499,-867.54923149,0.00021915,2]
[330824263,1719844243509,-867.54923149,0.00021915,2]
[330824265,1719844243523,-1000.0,0.00021916,2]
[330824267,1719844243532,-500.0,0.00021916,2]
[330824269,1719844243542,-491.01229919,0.00021916,2]
[330824271,1719844243552,-222.80023212,0.00021916,2]
[330824273,1719844243561,-4604.4,0.00021916,2]
[330824275,1719844243571,-943547.10149171,0.00021917,7]
[330824277,1719844243580,-957.49612602,0.00021917,5]
[330824279,1719844243589,-500.0,0.00021917,4]
[330824281,1719844243601,-500.0,0.00021917,4]
[330824283,1719844243612,-500.0,0.00021917,4]
[330824285,1719844243621,-500.0,0.00021917,4]
[330824287,1719844243631,-500.0,0.00021917,4]
[330824289,1719844243640,-500.0,0.00021917,4]
[330824291,1719844243648,-500.0,0.00021917,4]
[330824293,1719844243657,-500.0,0.00021917,4]
[330824295,1719844243667,-500.0,0.00021917,4]
[330824297,1719844243676,-500.0,0.00021917,4]
[330824299,1719844243685,-500.0,0.00021917,4]
[330824300,1719844243695,-500.0,0.00021917,4]
[330824303,1719844243704,-500.0,0.00021917,4]
[330824306,1719844243714,-500.0,0.00021917,4]
[330824308,1719844243723,-500.0,0.00021917,4]
[330824310,1719844243732,-503.75794463,0.00021917,4]
[330824312,1719844243741,-500.0,0.00021917,4]
[330824314,1719844243750,-500.0,0.00021917,4]
[330824316,1719844243759,-500.0,0.00021917,4]
[330824318,1719844243768,-500.0,0.00021917,4]
[330824319,1719844243778,-533.53781591,0.00021917,4]
[330824322,1719844243788,-5193.08,0.00021917,4]
[330824324,1719844243797,-5193.08,0.00021917,4]
[330824325,1719844243806,-5193.08,0.00021917,4]
[330824327,1719844243815,-5193.08,0.00021917,4]
[330824330,1719844243825,-5193.08,0.00021917,4]
[330824332,1719844243834,-5193.08,0.00021917,4]
[330824334,1719844243844,-5193.08,0.00021917,4]
[330824336,1719844243853,-500.0,0.00021917,4]
[330824337,1719844243866,-500.0,0.00021917,4]
[330824340,1719844243877,-500.0,0.00021917,4]
[330824342,1719844243887,-5193.08,0.00021917,4]
[330824344,1719844243896,-500.0,0.00021917,4]
[330824346,1719844243907,-5193.08,0.00021917,4]
[330824348,1719844243917,-500.0,0.00021917,4]
[330824350,1719844243926,-5193.08,0.00021917,4]
[330824352,1719844243936,-500.0,0.00021917,4]
[330824353,1719844243945,-5193.08,0.00021917,4]
[330824355,1719844243954,-5193.08,0.00021917,4]
[330824358,1719844243964,-500.0,0.00021917,4]
[330824360,1719844243973,-500.0,0.00021917,4]
[330824361,1719844243983,-500.0,0.00021917,4]
[330824363,1719844243992,-5193.08,0.00021917,4]
[330824365,1719844244002,-5193.08,0.00021917,4]
[330824368,1719844244012,-5193.08,0.00021917,4]
[330824370,1719844244022,-5193.08,0.00021917,4]
[330824372,1719844244032,-5193.08,0.00021917,4]
[330824374,1719844244041,-5193.08,0.00021917,4]
[330824376,1719844244052,-5193.08,0.00021917,4]
[330824378,1719844244062,-5193.08,0.00021917,4]
[330824380,1719844244072,-5193.08,0.00021917,4]
[330824382,1719844244081,-5193.08,0.00021917,4]
[330824384,1719844244091,-5193.08,0.00021917,4]
[330824386,1719844244101,-5193.15,0.00021917,4]
[330824388,1719844244111,-500.0,0.00021917,4]
[330824390,1719844244120,-500.0,0.00021917,4]
[330824392,1719844244130,-183.07123604,0.00021917,4]
[330824394,1719844244139,-500.0,0.00021917,4]
[330824396,1719844244148,-500.0,0.00021917,4]
[330824398,1719844244157,-500.0,0.00021917,4]
[330824400,1719844244166,-396.61037294,0.00021917,4]
[330824402,1719844244176,-1188.53,0.00021917,4]
[330824404,1719844244185,-1188.53,0.00021917,4]
[330824406,1719844244195,-1188.53,0.00021917,4]
[330824408,1719844244204,-1188.53,0.00021917,4]
[330824410,1719844244214,-1188.53,0.00021917,4]
[330824412,1719844244223,-1188.53,0.00021917,4]
[330824414,1719844244232,-1188.53,0.00021917,4]
[330824416,1719844244241,-1188.53,0.00021917,4]
[330824418,1719844244251,-1188.53,0.00021917,4]
[330824419,1719844244260,-500.0,0.00021917,4]
[330824422,1719844244270,-500.0,0.00021917,4]
[330824424,1719844244279,-1188.53,0.00021917,4]
[330824425,1719844244288,-617.79536204,0.00021917,4]
[330824427,1719844244298,-1188.53,0.00021917,4]
[330824429,1719844244307,-1188.53,0.00021917,4]
[330824431,1719844244316,-1188.53,0.00021917,4]
[330824434,1719844244326,-1188.53,0.00021917,4]
[330824436,1719844244336,-1188.53,0.00021917,4]
[330824438,1719844244345,-586.3505797,0.00021917,4]
[330824440,1719844244355,-1188.53,0.00021917,4]
[330824442,1719844244365,-1188.53,0.00021917,4]
[330824443,1719844244374,-1188.53,0.00021917,4]
[330824446,1719844244384,-1188.53,0.00021917,4]
[330824448,1719844244393,-500.0,0.00021917,4]
[330824449,1719844244403,-1188.53,0.00021917,4]
[330824452,1719844244412,-500.0,0.00021917,4]
[330824454,1719844244422,-1188.53,0.00021917,4]
[330824456,1719844244431,-500.0,0.00021917,4]
[330824458,1719844244440,-500.0,0.00021917,4]
[330824460,1719844244450,-1188.53,0.00021917,4]
[330824462,1719844244459,-500.0,0.00021917,4]
[330824464,1719844244468,-500.0,0.00021917,4]
[330824466,1719844244478,-1188.53,0.00021917,4]
[330824468,1719844244487,-1188.63650279,0.00021917,4]
[330824470,1719844244495,-844.89,0.00021917,4]
[330824472,1719844244505,-844.89,0.00021917,4]
[330824474,1719844244515,-844.89,0.00021917,4]
[330824476,1719844244527,-844.89,0.00021917,4]
[330824478,1719844244536,-844.89,0.00021917,4]
[330824480,1719844244546,-844.89,0.00021917,4]
[330824482,1719844244555,-844.89,0.00021917,4]
[330824483,1719844244566,-844.89,0.00021917,4]
[330824484,1719844244575,-844.89,0.00021917,4]
[330824485,1719844244584,-844.89,0.00021917,4]
[330824486,1719844244593,-844.89,0.00021917,4]
[330824487,1719844244603,-844.89,0.00021917,4]
[330824488,1719844244613,-844.89,0.00021917,4]
[330824489,1719844244623,-844.89,0.00021917,4]
[330824490,1719844244632,-844.89,0.00021917,4]
[330824491,1719844244641,-844.89,0.00021917,4]
[330824492,1719844244652,-844.89,0.00021917,4]
[330824493,1719844244660,-500.0,0.00021917,4]
[330824494,1719844244670,-844.89,0.00021917,4]
[330824495,1719844244679,-844.89,0.00021917,4]
[330824497,1719844244689,-500.0,0.00021917,4]
[330824499,1719844244699,-541.55307029,0.00021917,4]
[330824501,1719844244708,-844.89,0.00021917,4]
[330824503,1719844244718,-844.89,0.00021917,4]
[330824505,1719844244727,-844.89,0.00021917,4]
[330824507,1719844244737,-844.89,0.00021917,4]
[330824509,1719844244746,-844.95181088,0.00021917,4]
[330824511,1719844244756,-1823.94,0.00021917,4]
[330824513,1719844244766,-1823.94,0.00021917,4]
[330824515,1719844244775,-1823.94,0.00021917,4]
[330824517,1719844244785,-1823.94,0.00021917,4]
[330824519,1719844244794,-1823.94,0.00021917,4]
[330824521,1719844244804,-1823.94,0.00021917,4]
[330824523,1719844244813,-500.0,0.00021917,4]
[330824525,1719844244823,-1823.94,0.00021917,4]
[330824527,1719844244833,-500.0,0.00021917,4]
[330824529,1719844244842,-500.0,0.00021917,4]
[330824531,1719844244852,-1823.94,0.00021917,4]
[330824533,1719844244861,-500.0,0.00021917,4]
[330824535,1719844244870,-1823.94,0.00021917,4]
[330824537,1719844244881,-500.0,0.00021917,4]
[330824539,1719844244890,-500.0,0.00021917,4]
[330824541,1719844244899,-1823.94,0.00021917,4]
[330824543,1719844244911,-1823.94,0.00021917,4]
[330824545,1719844244920,-1823.94,0.00021917,4]
[330824547,1719844244930,-1823.94,0.00021917,4]
[330824549,1719844244940,-1823.94,0.00021917,4]
[330824551,1719844244950,-1823.94,0.00021917,4]
[330824553,1719844244959,-1823.94,0.00021917,4]
[330824555,1719844244969,-1823.94,0.00021917,4]
[330824557,1719844244978,-1823.94,0.00021917,4]
[330824559,1719844244987,-1823.94,0.00021917,4]
[330824561,1719844244997,-1823.94,0.00021917,4]
[330824563,1719844245006,-500.0,0.00021917,4]
[330824565,1719844245015,-500.0,0.00021917,4]
[330824567,1719844245024,-500.0,0.00021917,4]
[330824569,1719844245033,-500.0,0.00021917,4]
[330824571,1719844245042,-1823.94,0.00021917,4]
[330824573,1719844245051,-500.0,0.00021917,4]
[330824575,1719844245060,-500.0,0.00021917,4]
[330824577,1719844245070,-1823.94,0.00021917,4]
[330824579,1719844245079,-1823.94,0.00021917,4]
[330824581,1719844245088,-1824.08344347,0.00021917,4]
[330824583,1719844245097,-500.0,0.00021917,4]
[330824585,1719844245107,-500.0,0.00021917,4]
[330824587,1719844245117,-500.0,0.00021917,4]
[330824589,1719844245127,-500.0,0.00021917,4]
[330824591,1719844245136,-500.0,0.00021917,4]
[330824593,1719844245145,-500.0,0.00021917,4]
[330824595,1719844245155,-500.0,0.00021917,4]
[330824597,1719844245164,-500.0,0.00021917,4]
[330824599,1719844245173,-500.0,0.00021917,4]
[330824601,1719844245182,-821.75,0.00021917,4]
[330824602,1719844245190,-500.0,0.00021917,4]
[330824604,1719844245200,-500.0,0.00021917,4]
[330824607,1719844245209,-500.0,0.00021917,4]
[330824609,1719844245219,-821.75,0.00021917,4]
[330824610,1719844245228,-500.0,0.00021917,4]
[330824612,1719844245237,-500.0,0.00021917,4]
[330824614,1719844245247,-821.75,0.00021917,4]
[330824617,1719844245256,-500.0,0.00021917,4]
[330824619,1719844245266,-500.0,0.00021917,4]
[330824621,1719844245275,-821.75,0.00021917,4]
[330824622,1719844245284,-500.0,0.00021917,4]
[330824624,1719844245293,-821.75,0.00021917,4]
[330824627,1719844245303,-821.75,0.00021917,4]
[330824628,1719844245312,-821.75,0.00021917,4]
[330824631,1719844245321,-821.75,0.00021917,4]
[330824633,1719844245331,-821.75,0.00021917,4]
[330824635,1719844245341,-821.75,0.00021917,4]
[330824637,1719844245350,-821.75,0.00021917,4]
[330824639,1719844245360,-821.75,0.00021917,4]
[330824641,1719844245370,-500.0,0.00021917,4]
[330824643,1719844245379,-500.0,0.00021917,4]
[330824645,1719844245388,-500.0,0.00021917,4]
[330824647,1719844245397,-821.75,0.00021917,4]
[330824648,1719844245406,-500.0,0.00021917,4]
[330824650,1719844245415,-500.0,0.00021917,4]
[330824652,1719844245425,-500.0,0.00021917,4]
[330824654,1719844245434,-500.0,0.00021917,4]
[330824656,1719844245443,-821.75,0.00021917,4]
[330824659,1719844245452,-500.0,0.00021917,4]
[330824661,1719844245466,-821.75,0.00021917,4]
[330824685,1719844245685,-455.14161022,0.00021917,4]
[330824687,1719844245694,-821.75,0.00021917,4]
[330824689,1719844245703,-821.75,0.00021917,4]
[330824691,1719844245713,-821.75,0.00021917,4]
[330824693,1719844245723,-821.75,0.00021917,4]
[330824695,1719844245732,-821.75,0.00021917,4]
[330824697,1719844245741,-500.0,0.00021917,4]
[330824699,1719844245750,-821.75,0.00021917,4]
[330824701,1719844245759,-500.0,0.00021917,4]
[330824703,1719844245768,-500.0,0.00021917,4]
[330824705,1719844245777,-500.0,0.00021917,4]
[330824707,1719844245786,-821.75,0.00021917,4]
[330824709,1719844245795,-500.0,0.00021917,4]
[330824711,1719844245804,-500.0,0.00021917,4]
[330824712,1719844245814,-590.0,0.00021917,4]
[330824713,1719844245823,-500.0,0.00021917,4]
[330824714,1719844245833,-500.0,0.00021917,4]
[330824715,1719844245843,-500.0,0.00021917,4]
[330824716,1719844245853,-500.0,0.00021917,4]
[330824717,1719844245865,-821.75,0.00021917,4]
[330824718,1719844245875,-500.0,0.00021917,4]
[330824719,1719844245884,-821.96720536,0.00021917,4]
[330824720,1719844245896,-500.0,0.00021917,4]
[330824721,1719844245909,-300.15092642,0.00021917,4]
[330824722,1719844245919,-215.06,0.00021917,4]
[330824723,1719844245929,-1877.15,0.00021917,4]
[330824724,1719844245938,-500.0,0.00021917,4]
[330824725,1719844245948,-1877.15,0.00021917,4]
[330824726,1719844245957,-500.0,0.00021917,4]
[330824727,1719844245966,-500.0,0.00021917,4]
[330824728,1719844245976,-1877.15,0.00021917,4]
[330824729,1719844245985,-500.0,0.00021917,4]
[330824730,1719844245995,-500.0,0.00021917,4]
[330824731,1719844246005,-1877.15,0.00021917,4]
[330824732,1719844246014,-500.0,0.00021917,4]
[330824733,1719844246024,-1877.15,0.00021917,4]
[330824734,1719844246033,-1877.15,0.00021917,4]
[330824735,1719844246042,-1877.15,0.00021917,4]
[330824736,1719844246052,-1877.15,0.00021917,4]
[330824737,1719844246061,-1877.15,0.00021917,4]
[330824738,1719844246070,-1877.15,0.00021917,4]
[330824739,1719844246079,-1877.15,0.00021917,4]
[330824740,1719844246089,-1877.15,0.00021917,4]
[330824741,1719844246098,-500.0,0.00021917,4]
[330824742,1719844246107,-1877.15,0.00021917,4]
[330824743,1719844246119,-500.0,0.00021917,4]
[330824744,1719844246128,-500.0,0.00021917,4]
[330824745,1719844246138,-500.0,0.00021917,4]
[330824746,1719844246147,-1877.15,0.00021917,4]
[330824747,1719844246156,-500.0,0.00021917,4]
[330824748,1719844246165,-1877.15,0.00021917,4]
[330824749,1719844246175,-1877.15,0.00021917,4]
[330824750,1719844246183,-1877.15,0.00021917,4]
[330824751,1719844246193,-1877.15,0.00021917,4]
[330824752,1719844246203,-1877.15,0.00021917,4]
[330824753,1719844246213,-500.0,0.00021917,4]
[330824754,1719844246222,-1877.15,0.00021917,4]
[330824755,1719844246231,-500.0,0.00021917,4]
[330824756,1719844246240,-500.0,0.00021917,4]
[330824757,1719844246250,-500.0,0.00021917,4]
[330824758,1719844246259,-500.0,0.00021917,4]
[330824759,1719844246269,-1877.15,0.00021917,4]
[330824760,1719844246278,-1877.15,0.00021917,4]
[330824762,1719844246287,-500.0,0.00021917,4]
[330824764,1719844246297,-500.0,0.00021917,4]
[330824766,1719844246306,-1877.15,0.00021917,4]
[330824768,1719844246316,-500.0,0.00021917,4]
[330824770,1719844246325,-500.0,0.00021917,4]
[330824772,1719844246334,-500.0,0.00021917,4]
[330824774,1719844246343,-500.0,0.00021917,4]
[330824776,1719844246353,-1877.19402236,0.00021917,4]
[330824778,1719844246367,-500.0,0.00021917,4]
[330824780,1719844246378,-500.0,0.00021917,4]
[330824782,1719844246387,-500.0,0.00021917,4]
[330824784,1719844246397,-500.0,0.00021917,4]
[330824786,1719844246407,-500.0,0.00021917,4]
[330824788,1719844246417,-500.0,0.00021917,4]
[330824790,1719844246427,-500.0,0.00021917,4]
[330824792,1719844246436,-500.0,0.00021917,4]
[330824794,1719844246446,-500.0,0.00021917,4]
[330824796,1719844246456,-500.0,0.00021917,4]
[330824798,1719844246465,-500.0,0.00021917,4]
[330824800,1719844246474,-500.0,0.00021917,4]
[330824802,1719844246484,-500.0,0.00021917,4]
[330824804,1719844246494,-500.0,0.00021917,4]
[330824806,1719844246503,-500.0,0.00021917,4]
[330824808,1719844246513,-500.0,0.00021917,4]
[330824810,1719844246527,-500.0,0.00021917,4]
[330824812,1719844246536,-500.0,0.00021917,4]
[330824814,1719844246545,-500.0,0.00021917,4]
[330824816,1719844246555,-500.0,0.00021917,4]
[330824818,1719844246566,-500.0,0.00021917,4]
[330824820,1719844246575,-500.0,0.00021917,4]
[330824822,1719844246584,-500.0,0.00021917,4]
[330824824,1719844246593,-201.6,0.00021917,4]
[330824827,1719844246604,-500.0,0.00021917,4]
[330824829,1719844246615,-564.60752105,0.00021917,4]
[330824831,1719844246625,-500.0,0.00021917,4]
[330824833,1719844246634,-500.0,0.00021917,4]